bitfinex/quotes_SOLUSD_20241118
["timestamp","ask_amount","ask_price","bid_price","bid_amount"]
[1731890284593,0.54388234,236.02,235.95,31.35977665]
[1731890284807,0.54388234,236.02,235.91,16.52637665]
[1731890284808,16.52637665,235.99,235.91,16.52637665]
[1731890285092,0.54388234,235.98,235.91,20.76507665]
[1731890285682,24.32076634,235.98,235.91,16.52637665]
[1731890286090,16.52637665,235.97,235.9,14.8364]
[1731890286283,16.52637665,236.02,235.93,16.52637665]
[1731890286488,22.6395,236.06,235.97,16.52637665]
[1731890286489,40.84714299,236.05,235.97,16.52637665]
[1731890286686,0.54388234,236.13,236.04,16.52637665]
[1731890286874,4.2342,236.17,235.98,21.6015]
[1731890286875,17.07025899,236.16,236.07,16.52637665]
[1731890287197,16.52637665,236.14,236.05,16.52637665]
[1731890287500,0.54388234,236.13,236.05,16.52637665]
[1731890287707,0.54388234,236.13,236.06,4.2362]
[1731890287905,0.54388234,236.17,236.12,16.52637665]
[1731890288699,0.54388234,236.23,236.16,16.52637665]
[1731890288899,4.233,236.24,236.18,16.52637665]
[1731890289199,4.77688234,236.24,236.18,16.52637665]
[1731890289398,0.54388234,236.23,236.18,16.52637665]
[1731890289897,20.0,236.22,236.16,16.52637665]
[1731890291191,24.2334,236.22,236.14,16.52637665]
[1731890292183,24.2334,236.22,236.16,16.52637665]
[1731890292381,4.2334,236.22,236.16,16.52637665]
[1731890292802,16.52637665,236.25,236.16,16.52637665]
[1731890292987,20.75917665,236.25,236.16,4.2344]
[1731890293202,0.54388234,236.24,236.16,20.76077665]
[1731890293496,20.0,236.24,236.16,20.76077665]
[1731890293804,0.54388234,236.24,236.18,16.52637665]
[1731890294116,6.4573,236.3,236.18,16.52637665]
[1731890294117,16.52637665,236.27,236.18,16.52637665]
[1731890294398,20.75887665,236.27,236.18,20.76037665]
[1731890294607,20.75847665,236.29,236.2,16.52637665]
[1731890295194,0.54388234,236.34,236.24,16.52637665]
[1731890295392,0.54388234,236.34,236.26,16.52637665]
[1731890295393,16.52637665,236.34,236.26,16.52637665]
[1731890295691,16.52637665,236.36,236.28,16.52637665]
[1731890295902,16.52637665,236.38,236.3,16.52637665]
[1731890296298,16.52637665,236.4,236.32,20.75777665]
[1731890296514,16.52637665,236.4,236.32,4.2314]
[1731890296818,20.75657665,236.4,236.31,16.52637665]
[1731890297315,16.52637665,236.38,236.31,16.52637665]
[1731890297728,20.75617665,236.42,236.33,16.52637665]
[1731890298019,20.75617665,236.42,236.35,16.52637665]
[1731890298224,0.54388234,236.46,236.35,16.52637665]
[1731890298400,16.52637665,236.44,236.35,16.52637665]
[1731890298601,16.52637665,236.42,236.35,16.52637665]
[1731890298810,16.52637665,236.36,236.24,10.582]
[1731890299122,0.54388234,236.35,236.24,14.8149]
[1731890299296,0.1,236.43,236.24,14.8149]
[1731890299297,16.52637665,236.34,236.25,16.52637665]
[1731890299905,16.52637665,236.32,236.25,16.52637665]
[1731890300195,16.52637665,236.26,236.18,27.11147665]
[1731890300400,16.52637665,236.28,236.2,16.52637665]
[1731890300612,16.52637665,236.3,236.22,16.52637665]
[1731890300800,16.52637665,236.3,236.21,0.09367462]
[1731890300801,16.52637665,236.32,236.24,16.52637665]
[1731890302018,16.52637665,236.32,236.24,20.75917665]
[1731890302900,43.776884,236.31,236.22,10.5829]
[1731890303213,16.52637665,236.3,236.22,31.34257665]
[1731890303606,16.52637665,236.3,236.23,0.09367462]
[1731890304012,16.52637665,236.3,236.22,31.34257665]
[1731890304393,16.52637665,236.28,236.2,16.52637665]
[1731890304796,16.52637665,236.24,236.17,14.8196]
[1731890305022,16.52637665,236.24,236.17,10.5855]
[1731890305723,16.52637665,236.2,236.13,6.481]
[1731890305913,16.52637665,236.15,236.08,4.2358]
[1731890306121,20.76137665,236.13,236.06,10.5903]
[1731890306421,16.52637665,236.13,236.06,17.21939792]
[1731890306602,0.54388234,236.12,236.06,6.62909792]
[1731890306799,16.52637665,236.11,236.02,16.62005127]
[1731890307009,16.52637665,236.07,236.01,10.5927]
[1731890308201,26.87951177,236.07,236.01,10.5927]
[1731890308400,4.2358,236.09,235.96,26.87951177]
[1731890308401,26.87951177,236.05,235.96,26.87951177]
[1731890309125,26.87951177,236.05,235.96,33.51154]
[1731890309911,26.87951177,236.01,235.95,10.595]
[1731890310298,26.87951177,236.01,235.96,6.63215426]
[1731890310635,26.87951177,236.03,235.95,14.8331]
[1731890311095,26.87951177,236.03,235.96,0.09367462]
[1731890311300,26.87951177,236.09,236.0,26.87951177]
[1731890311608,6.6497,236.17,235.98,0.09367462]
[1731890311609,26.87951177,236.13,236.05,4.36179]
[1731890311910,26.87951177,236.11,236.05,4.36179]
[1731890312100,4.77848234,236.15,236.0,0.12549]
[1731890312101,26.87951177,236.08,236.0,0.12549]
[1731890312438,26.87951177,236.06,235.97,37.47361177]
[1731890312617,26.87951177,236.06,235.98,0.12549]
[1731890312812,26.87951177,236.01,235.97,10.5941]
[1731890313006,26.87951177,236.01,235.95,6.63187437]
[1731890313347,26.87951177,235.97,235.95,6.63187437]
[1731890313632,26.87951177,235.97,235.89,26.87951177]
[1731890313831,26.87951177,235.97,235.9,6.63349094]
[1731890314434,26.87951177,235.99,235.91,0.09367462]
[1731890315002,26.87951177,235.97,235.9,6.63349094]
[1731890316106,26.87951177,235.97,235.91,0.12549]
[1731890316332,26.87951177,235.99,235.92,0.09367462]
[1731890316522,20.0,236.02,235.95,0.12549]
[1731890316726,26.87951177,236.03,235.95,0.12549]
[1731890316932,26.87951177,236.03,235.94,26.87951177]
[1731890317235,26.87951177,236.05,235.96,26.87951177]
[1731890317534,26.87951177,236.05,235.97,4.2378]
[1731890318529,20.0,236.04,235.97,4.2378]
[1731890318931,26.87951177,236.05,235.98,0.21916462]
[1731890319110,26.87951177,236.07,235.98,26.87951177]
[1731890319307,0.54388234,236.06,235.98,26.87951177]
[1731890319712,26.87951177,236.03,235.94,26.87951177]
[1731890319909,26.87951177,236.01,235.94,26.87951177]
[1731890320130,26.87951177,236.03,235.94,26.87951177]
[1731890320627,26.87951177,236.01,235.92,37.47601177]
[1731890321333,26.87951177,235.97,235.9,6.63349094]
[1731890321536,27.42339411,235.97,235.9,6.63349094]
[1731890321840,26.87951177,235.95,235.9,6.63349094]
[1731890322010,26.87951177,235.91,235.86,0.4668373]
[1731890322214,43.776884,235.87,235.86,0.4668373]
[1731890322408,44.32076634,235.87,235.86,0.4668373]
[1731890323513,71.20027811,235.87,235.86,0.4668373]
[1731890324025,75.53987811,235.87,235.86,0.4668373]
[1731890324233,75.63355273,235.87,235.86,0.4668373]
[1731890325738,75.98453273,235.87,235.86,0.4668373]
[1731890325923,75.98453273,235.87,235.61,0.1]
[1731890325924,20.09367462,235.72,235.6,26.87951177]
[1731890326229,20.09367462,235.72,235.58,10.6044]
[1731890326230,26.87951177,235.66,235.58,10.6044]
[1731890326447,26.87951177,235.66,235.48,6.0699]
[1731890326448,26.87951177,235.64,235.6,6.64202494]
[1731890326610,44.32076634,235.63,235.52,26.87951177]
[1731890326810,44.32076634,235.63,235.52,43.85012277]
[1731890327027,20.54388234,235.63,235.54,26.87951177]
[1731890327206,26.87951177,235.64,235.56,26.87951177]
[1731890327644,0.54388234,235.63,235.56,26.87951177]
[1731890328714,26.87951177,235.64,235.56,31.12461177]
[1731890328910,0.54388234,235.63,235.56,31.12461177]
[1731890329109,0.54388234,235.63,235.54,16.968985]
[1731890329110,48.65834096,235.63,235.53,6.64422298]
[1731890329415,48.65834096,235.63,235.5,37.49511177]
[1731890330431,48.56466634,235.63,235.5,37.49511177]
[1731890330740,48.56466634,235.63,235.52,26.87951177]
[1731890330916,48.56466634,235.63,235.5,14.8618]
[1731890330917,48.56466634,235.63,235.5,37.49511177]
[1731890331237,26.87951177,235.64,235.56,26.87951177]
[1731890332339,23.776884,235.66,235.56,26.87951177]
[1731890332642,20.0,235.63,235.56,26.87951177]
[1731890332839,20.0,235.63,235.52,26.87951177]
[1731890332840,44.32076634,235.63,235.52,26.87951177]
[1731890333140,71.20027811,235.63,235.51,26.87951177]
[1731890334536,71.20027811,235.63,235.53,26.87951177]
[1731890334736,71.20027811,235.63,235.53,33.52388138]
[1731890335128,71.20027811,235.63,235.53,26.87951177]
[1731890336244,71.29395273,235.63,235.48,26.87951177]
[1731890336410,71.20027811,235.63,235.5,26.87951177]
[1731890336617,71.39395273,235.63,235.48,26.87951177]
[1731890336813,71.64493273,235.63,235.48,26.87951177]
[1731890337039,71.54493273,235.63,235.48,26.87951177]
[1731890337409,71.54493273,235.63,235.5,26.87951177]
[1731890337635,71.20027811,235.63,235.5,26.87951177]
[1731890337930,71.20027811,235.63,235.5,33.52448309]
[1731890338133,28.020984,235.62,235.52,26.87951177]
[1731890338316,20.0,235.59,235.52,26.87951177]
[1731890338513,27.42339411,235.58,235.5,26.87951177]
[1731890339843,27.42339411,235.58,235.45,15.0]
[1731890339844,26.87951177,235.54,235.46,26.87951177]
[1731890340142,0.54388234,235.58,235.49,26.87951177]
[1731890340143,26.87951177,235.58,235.49,26.87951177]
[1731890340311,0.54388234,235.57,235.51,16.607913]
[1731890340516,0.54388234,235.56,235.49,16.607913]
[1731890340712,0.54388234,235.55,235.49,16.607913]
[1731890340916,0.54388234,235.54,235.47,16.607913]
[1731890341146,0.54388234,235.54,235.48,16.607913]
[1731890341321,0.54388234,235.54,235.45,29.8649]
[1731890341322,20.0,235.55,235.49,16.607913]
[1731890341918,40.384797,235.54,235.45,53.11870149]
[1731890342125,16.607913,235.51,235.45,38.25380149]
[1731890342444,20.0,235.53,235.47,16.607913]
[1731890342659,20.0,235.54,235.47,16.607913]
[1731890342822,16.607913,235.57,235.5,16.607913]
[1731890343014,16.607913,235.59,235.52,16.607913]
[1731890343214,4.2439,235.63,235.45,36.51078849]
[1731890343215,23.776884,235.55,235.45,32.26378849]
[1731890343497,0.54388234,235.54,235.45,32.26378849]
[1731890343620,16.607913,235.53,235.46,16.607913]
[1731890343823,16.607913,235.52,235.45,48.87170149]
[1731890344135,20.853713,235.53,235.46,16.607913]
[1731890344339,20.0,235.52,235.46,16.607913]
[1731890344540,20.853713,235.53,235.46,16.607913]
[1731890344945,23.776884,235.52,235.46,16.607913]
[1731890345247,4.2458,235.53,235.46,16.607913]
[1731890345248,0.54388234,235.51,235.46,16.607913]
[1731890345541,0.54388234,235.51,235.45,31.607913]
[1731890345751,4.78998234,235.51,235.45,31.607913]
[1731890346316,41.39789534,235.51,235.45,15.0]
[1731890346721,16.607913,235.49,235.45,15.0]
[1731890347051,60.384797,235.46,235.45,15.0]
[1731890347263,60.384797,235.46,235.39,0.4668373]
[1731890347264,0.19367462,235.4,235.39,0.4668373]
[1731890347476,60.92867934,235.4,235.39,0.4668373]
[1731890347959,65.17667934,235.4,235.39,0.4668373]
[1731890348334,75.61285206,235.4,235.39,0.4668373]
[1731890348751,75.95750668,235.4,235.39,0.4668373]
[1731890349256,75.70652668,235.4,235.39,0.4668373]
[1731890349758,48.56876634,235.4,235.39,0.4668373]
[1731890349969,27.58796806,235.44,235.39,0.4668373]
[1731890350144,27.04408572,235.48,235.4,27.04408572]
[1731890350765,27.04408572,235.5,235.42,27.04408572]
[1731890350935,27.04408572,235.48,235.4,27.04408572]
[1731890351263,27.04408572,235.61,235.48,0.25098]
[1731890351429,27.04408572,235.53,235.44,27.04408572]
[1731890351765,0.54388234,235.52,235.44,27.04408572]
[1731890351962,27.04408572,235.51,235.45,4.2471]
[1731890352345,27.04408572,235.49,235.43,4.2475]
[1731890352748,27.04408572,235.47,235.39,15.3356373]
[1731890353057,27.04408572,235.45,235.39,0.4668373]
[1731890353255,0.54388234,235.44,235.39,0.4668373]
[1731890353465,27.04408572,235.47,235.4,27.04408572]
[1731890353656,0.54388234,235.53,235.4,27.04408572]
[1731890353657,20.0,235.48,235.4,27.04408572]
[1731890353966,27.58796806,235.47,235.4,27.04408572]
[1731890354353,0.54388234,235.47,235.4,27.04408572]
[1731890354561,20.54388234,235.48,235.44,27.04408572]
[1731890355032,0.54388234,235.48,235.42,27.04408572]
[1731890355231,20.54388234,235.49,235.44,27.04408572]
[1731890355461,0.54388234,235.48,235.44,27.04408572]
[1731890355662,27.04408572,235.55,235.46,27.04408572]
[1731890355968,0.54388234,235.62,235.55,4.2453]
[1731890356164,27.04408572,235.65,235.56,27.04408572]
[1731890356336,27.04408572,235.63,235.56,27.04408572]
[1731890356536,0.54388234,235.62,235.56,27.04408572]
[1731890356969,0.54388234,235.62,235.55,10.6134]
[1731890357357,27.04408572,235.61,235.53,4.2457]
[1731890357665,27.04408572,235.57,235.5,27.04408572]
[1731890357835,27.04408572,235.57,235.49,14.8623]
[1731890357836,0.54388234,235.56,235.49,14.8623]
[1731890358037,27.04408572,235.61,235.52,27.04408572]
[1731890358259,0.54388234,235.6,235.52,27.04408572]
[1731890358453,20.0,235.59,235.52,27.04408572]
[1731890358769,0.54388234,235.58,235.52,27.04408572]
[1731890358939,27.04408572,235.55,235.47,27.04408572]
[1731890359138,24.32076634,235.54,235.47,27.04408572]
[1731890360243,0.54388234,235.54,235.48,4.2466]
[1731890360559,23.776884,235.54,235.47,27.04408572]
[1731890360768,23.776884,235.52,235.45,27.04408572]
[1731890360960,0.54388234,235.51,235.45,27.04408572]
[1731890361275,23.776884,235.5,235.43,27.04408572]
[1731890361571,23.776884,235.5,235.39,15.5218373]
[1731890361572,23.776884,235.48,235.39,27.51092302]
[1731890361741,0.1,235.54,235.39,0.4668373]
[1731890361742,23.776884,235.4,235.39,0.4668373]
[1731890362069,24.32076634,235.4,235.39,0.4668373]
[1731890362480,48.56876634,235.4,235.39,0.4668373]
[1731890363183,48.66244096,235.4,235.39,0.4668373]
[1731890363492,55.65482096,235.4,235.39,0.4668373]
[1731890363855,55.55482096,235.4,235.39,0.4668373]
[1731890364257,55.65482096,235.4,235.39,0.4668373]
[1731890364771,0.09367462,235.32,235.2,10.6289]
[1731890364958,23.776884,235.27,235.2,10.6289]
[1731890365154,27.58796806,235.26,235.19,27.04408572]
[1731890365373,23.776884,235.25,235.19,27.04408572]
[1731890365588,0.54388234,235.24,235.17,27.04408572]
[1731890365886,0.54388234,235.24,235.15,0.4668373]
[1731890365887,23.776884,235.23,235.15,27.51092302]
[1731890366062,23.776884,235.21,235.15,0.4668373]
[1731890366263,0.54388234,235.2,235.15,0.4668373]
[1731890367359,23.776884,235.19,235.15,0.4668373]
[1731890367565,0.54388234,235.18,235.15,0.4668373]
[1731890368583,0.54388234,235.19,235.15,27.51092302]
[1731890368763,23.776884,235.21,235.15,27.51092302]
[1731890368764,0.54388234,235.21,235.18,27.04408572]
[1731890368973,24.32076634,235.25,235.2,27.04408572]
[1731890369276,27.04408572,235.37,235.24,27.04408572]
[1731890369486,0.54388234,235.36,235.23,0.1]
[1731890369675,0.54388234,235.39,235.23,0.1]
[1731890369877,31.83616806,235.39,235.31,27.04408572]
[1731890370190,27.04408572,235.35,235.27,27.04408572]
[1731890370366,0.54388234,235.34,235.27,27.04408572]
[1731890370680,27.04408572,235.33,235.25,27.04408572]
[1731890370887,0.54388234,235.32,235.25,27.04408572]
[1731890371366,0.54388234,235.32,235.27,27.04408572]
[1731890371774,0.54388234,235.33,235.27,27.04408572]
[1731890372290,27.04408572,235.31,235.23,27.04408572]
[1731890372471,0.54388234,235.3,235.23,27.04408572]
[1731890373585,0.54388234,235.3,235.27,27.04408572]
[1731890373709,0.54388234,235.33,235.27,27.04408572]
[1731890374284,0.54388234,235.34,235.31,27.04408572]
[1731890374600,0.54388234,235.34,235.22,0.1]
[1731890374601,0.54388234,235.38,235.33,27.04408572]
[1731890375099,0.54388234,235.4,235.35,27.04408572]
[1731890375268,0.54388234,235.4,235.25,0.19367462]
[1731890375269,0.54388234,235.4,235.39,27.04408572]
[1731890375585,0.54388234,235.44,235.39,27.04408572]
[1731890375758,0.54388234,235.46,235.41,27.04408572]
[1731890375958,0.54388234,235.48,235.43,27.04408572]
[1731890376174,27.04408572,235.5,235.41,27.04408572]
[1731890376380,0.54388234,235.49,235.41,27.04408572]
[1731890376692,0.54388234,235.49,235.43,27.04408572]
[1731890376989,27.04408572,235.56,235.47,27.04408572]
[1731890377168,0.54388234,235.55,235.5,27.04408572]
[1731890377374,0.54388234,235.55,235.48,27.04408572]
[1731890377706,0.54388234,235.55,235.48,31.29068572]
[1731890378573,0.54388234,235.55,235.5,27.04408572]
[1731890378795,0.54388234,235.57,235.5,27.04408572]
[1731890379203,0.54388234,235.57,235.48,41.90728572]
[1731890379579,27.04408572,235.56,235.48,37.66068572]
[1731890379780,0.54388234,235.55,235.48,37.66068572]
[1731890379993,27.04408572,235.54,235.48,10.6166]
[1731890380192,27.04408572,235.54,235.39,21.241]
[1731890380193,27.04408572,235.5,235.42,37.66298572]
[1731890380401,27.04408572,235.48,235.42,10.6189]
[1731890380695,0.54388234,235.47,235.42,27.04408572]
[1731890380878,0.54388234,235.49,235.42,27.04408572]
[1731890381295,0.54388234,235.49,235.44,27.04408572]
[1731890381485,0.54388234,235.49,235.42,27.04408572]
[1731890381897,0.54388234,235.51,235.42,27.04408572]
[1731890382193,0.54388234,235.51,235.42,31.29168572]
[1731890382389,4.78998234,235.51,235.42,31.29168572]
[1731890382593,27.04408572,235.5,235.42,31.29168572]
[1731890382903,0.54388234,235.49,235.42,31.29168572]
[1731890383196,0.54388234,235.49,235.44,27.04408572]
[1731890383396,0.54388234,235.51,235.46,27.04408572]
[1731890383776,193.58928572,235.56,235.48,27.04408572]
[1731890383777,0.54388234,235.55,235.48,27.04408572]
[1731890383993,0.54388234,235.55,235.5,27.04408572]
[1731890384200,0.54388234,235.57,235.5,27.04408572]
[1731890384588,27.04408572,235.56,235.48,31.29058572]
[1731890384789,0.54388234,235.55,235.48,31.29058572]
[1731890385105,0.54388234,235.55,235.5,27.04408572]
[1731890385396,0.54388234,235.57,235.5,27.04408572]
[1731890386406,0.54388234,235.64,235.56,27.04408572]
[1731890386594,0.54388234,235.64,235.58,27.04408572]
[1731890387099,6.171,235.65,235.51,14.8613]
[1731890387100,0.54388234,235.65,235.62,27.04408572]
[1731890387310,0.54388234,235.69,235.64,27.04408572]
[1731890387488,0.54388234,235.71,235.64,27.04408572]
[1731890388008,0.54388234,235.74,235.7,27.04408572]
[1731890388189,27.58796806,235.76,235.63,14.8537]
[1731890388538,27.04408572,235.74,235.65,27.04408572]
[1731890388677,27.04408572,235.74,235.63,14.8537]
[1731890388678,0.54388234,235.73,235.67,27.04408572]
[1731890388876,0.54388234,235.73,235.65,27.04408572]
[1731890389500,27.04408572,235.7,235.63,10.6098]
[1731890389803,4.2417,235.76,235.59,27.04408572]
[1731890389804,27.04408572,235.68,235.59,27.04408572]
[1731890390100,27.04408572,235.74,235.65,27.04408572]
[1731890390306,27.04408572,235.72,235.65,27.04408572]
[1731890390604,0.54388234,235.71,235.68,27.04408572]
[1731890390905,0.54388234,235.74,235.68,27.04408572]
[1731890391281,0.54388234,235.74,235.7,27.04408572]
[1731890391494,0.54388234,235.77,235.7,27.04408572]
[1731890391894,0.54388234,235.77,235.74,27.04408572]
[1731890392101,0.54388234,235.79,235.74,27.04408572]
[1731890392304,0.54388234,235.82,235.74,27.04408572]
[1731890392497,0.54388234,235.82,235.76,27.04408572]
[1731890393521,27.04408572,235.85,235.76,27.04408572]
[1731890393703,27.04408572,235.87,235.78,27.04408572]
[1731890393892,4.2395,235.88,235.8,27.04408572]
[1731890394688,52.48847676,235.89,235.84,27.04408572]
[1731890394901,52.48847676,235.89,235.88,27.04408572]
[1731890395218,65.61059595,235.91,235.88,27.04408572]
[1731890395219,27.04408572,235.95,235.88,27.04408572]
[1731890395585,20.0722,235.96,235.88,27.04408572]
[1731890396007,15.8342,235.96,235.88,27.04408572]
[1731890396194,27.04408572,235.97,235.88,27.04408572]
[1731890396389,0.4668373,235.98,235.9,27.04408572]
[1731890396595,0.4668373,235.98,235.92,27.04408572]
[1731890396993,0.4668373,235.98,235.87,10.5988]
[1731890397199,0.4668373,235.98,235.91,27.04408572]
[1731890397695,0.4668373,235.98,235.93,27.04408572]
[1731890399117,0.4668373,235.98,235.97,27.04408572]
[1731890399691,0.4668373,235.98,235.9,0.1]
[1731890399894,0.4668373,235.98,235.93,27.04408572]
[1731890400294,0.4668373,235.98,235.95,27.04408572]
[1731890400494,0.4668373,235.98,235.97,27.04408572]
[1731890401224,0.4668373,235.98,235.95,27.04408572]
[1731890401397,0.4668373,235.98,235.88,21.1972]
[1731890401398,27.04408572,235.96,235.88,37.64228572]
[1731890402233,27.04408572,235.94,235.86,27.04408572]
[1731890402916,27.04408572,235.94,235.84,31.28418572]
[1731890403124,27.04408572,235.92,235.84,41.88458572]
[1731890403548,50.82096972,235.96,235.88,27.04408572]
[1731890403697,27.04408572,235.96,235.88,27.04408572]
[1731890404020,0.4668373,235.98,235.9,27.04408572]
[1731890404395,27.04408572,235.92,235.84,14.8405]
[1731890404629,27.04408572,235.88,235.81,27.04408572]
[1731890404802,27.04408572,235.84,235.75,31.28568572]
[1731890405009,27.04408572,235.82,235.73,27.04408572]
[1731890407901,27.04408572,235.82,235.73,31.28608572]
[1731890408100,23.776884,235.79,235.66,10.6083]
[1731890408411,27.04408572,235.74,235.66,10.6083]
[1731890408603,27.04408572,235.8,235.71,27.04408572]
[1731890408805,23.776884,235.79,235.73,27.04408572]
[1731890409014,31.28468572,235.82,235.73,27.04408572]
[1731890409015,27.04408572,235.8,235.73,27.04408572]
[1731890409218,23.776884,235.79,235.73,27.04408572]
[1731890409521,28.018084,235.79,235.73,27.04408572]
[1731890409703,28.018084,235.79,235.71,27.04408572]
[1731890410105,27.04408572,235.76,235.67,37.65208572]
[1731890410396,27.04408572,235.74,235.65,27.04408572]
[1731890411068,23.776884,235.73,235.65,27.04408572]
[1731890411196,27.04408572,235.72,235.63,27.04408572]
[1731890411403,27.04408572,235.7,235.63,27.04408572]
[1731890412006,4.2425,235.71,235.63,27.04408572]
[1731890412302,23.776884,235.7,235.63,27.04408572]
[1731890412716,50.82096972,235.7,235.63,27.04408572]
[1731890412923,27.04408572,235.66,235.57,27.04408572]
[1731890413124,27.04408572,235.7,235.61,27.04408572]
[1731890413432,28.019784,235.69,235.61,27.04408572]
[1731890413630,28.019784,235.69,235.63,27.04408572]
[1731890413834,23.776884,235.69,235.63,27.04408572]
[1731890414008,23.776884,235.7,235.63,27.04408572]
[1731890415124,28.019684,235.7,235.63,27.04408572]
[1731890416029,6.2507,235.72,235.65,27.04408572]
[1731890416212,4.2419,235.74,235.67,27.04408572]
[1731890416737,31.28528572,235.78,235.69,27.04408572]
[1731890416915,22.5907,235.79,235.71,27.04408572]
[1731890417428,26.8318,235.79,235.71,27.04408572]
[1731890418421,23.776884,235.78,235.71,27.04408572]
[1731890418822,28.018184,235.78,235.71,27.04408572]
[1731890419929,0.1,235.85,235.76,27.04408572]
[1731890419930,27.04408572,235.84,235.76,27.04408572]
[1731890420139,4.2399,235.85,235.78,27.04408572]
[1731890420315,4.2399,235.85,235.8,27.04408572]
[1731890420515,4.2393,235.89,235.82,27.04408572]
[1731890420715,4.2393,235.89,235.76,10.6039]
[1731890420917,4.2393,235.89,235.82,27.04408572]
[1731890422122,4.2393,235.89,235.73,0.09367462]
[1731890422123,4.2389,235.91,235.84,27.04408572]
[1731890422337,10.4248,235.93,235.86,27.04408572]
[1731890422647,4.2379,235.97,235.9,27.04408572]
[1731890423138,27.04408572,235.96,235.88,27.04408572]
[1731890423736,31.28218572,235.96,235.88,27.04408572]
[1731890423928,0.4668373,235.98,235.9,27.04408572]
[1731890424136,0.4668373,235.98,235.92,27.04408572]
[1731890424829,0.4668373,235.98,235.9,27.04408572]
[1731890425035,27.04408572,235.96,235.88,27.04408572]
[1731890425238,27.04408572,235.96,235.86,27.04408572]
[1731890425422,27.04408572,235.94,235.86,27.04408572]
[1731890425632,28.015384,235.93,235.84,41.88458572]
[1731890425841,27.04408572,235.92,235.84,37.64448572]
[1731890426037,23.776884,235.91,235.84,37.64448572]
[1731890427045,27.04408572,235.92,235.72,27.04408572]
[1731890427046,0.09367462,235.84,235.72,27.04408572]
[1731890427257,23.776884,235.79,235.72,27.04408572]
[1731890427436,23.776884,235.77,235.7,27.04408572]
[1731890428353,27.04408572,235.8,235.72,27.04408572]
[1731890428547,27.04408572,235.8,235.68,14.8505]
[1731890428548,23.776884,235.79,235.74,27.04408572]
[1731890428748,23.776884,235.79,235.72,27.04408572]
[1731890428948,4.2378,235.97,235.78,27.04408572]
[1731890429249,27.04408572,235.94,235.84,27.04408572]
[1731890429635,27.04408572,235.92,235.84,27.04408572]
[1731890430062,27.04408572,235.92,235.74,6.2931]
[1731890430063,27.04408572,235.92,235.82,27.04408572]
[1731890430564,27.04408572,235.94,235.86,27.04408572]
[1731890431027,0.4668373,235.98,235.92,27.04408572]
[1731890431229,0.4668373,235.98,235.84,0.1]
[1731890431230,0.4668373,235.98,235.96,27.04408572]
[1731890431634,0.4668373,235.98,235.97,0.12549]
[1731890432062,0.4668373,235.98,235.97,20.25098]
[1731890433040,0.4668373,235.98,235.97,24.48878]
[1731890434163,0.4668373,235.98,235.97,4.48878]
[1731890434344,0.4668373,235.98,235.96,27.04408572]
[1731890435731,31.74862302,235.98,235.9,27.04408572]
[1731890435934,23.776884,235.95,235.88,27.04408572]
[1731890436129,23.776884,235.93,235.86,27.04408572]
[1731890437573,27.04408572,235.89,235.72,4.2422]
[1731890437742,23.776884,235.78,235.7,17.24412013]
[1731890438038,0.21916462,235.86,235.74,27.04408572]
[1731890438039,27.04408572,235.84,235.74,27.04408572]
[1731890438244,23.776884,235.83,235.74,27.04408572]
[1731890439266,28.017284,235.83,235.74,27.04408572]
[1731890440257,27.04408572,235.78,235.7,27.04408572]
[1731890440563,23.776884,235.77,235.68,27.04408572]
[1731890440770,23.776884,235.75,235.68,27.04408572]
[1731890440973,23.776884,235.75,235.65,4.2435]
[1731890440974,23.776884,235.73,235.64,37.65338572]
[1731890441850,23.776884,235.73,235.64,41.89708572]
[1731890442046,33.23028572,235.78,235.68,27.04408572]
[1731890442251,27.04408572,235.82,235.74,27.04408572]
[1731890442558,4.2403,235.83,235.74,27.04408572]
[1731890442874,4.2403,235.83,235.76,27.04408572]
[1731890443047,4.2395,235.88,235.82,27.04408572]
[1731890443252,4.2391,235.9,235.82,27.04408572]
[1731890443671,4.2391,235.9,235.84,27.04408572]
[1731890443867,31.28318572,235.9,235.82,27.04408572]
[1731890445070,27.04408572,235.92,235.84,27.04408572]
[1731890445260,31.28258572,235.94,235.84,27.04408572]
[1731890446074,31.28258572,235.94,235.84,31.28408572]
[1731890446460,23.776884,235.93,235.84,31.28408572]
[1731890448573,23.776884,235.93,235.84,41.88448572]
[1731890449487,27.04408572,235.89,235.81,0.12549]
[1731890450073,27.04408572,235.93,235.85,0.12549]
[1731890450461,27.04408572,235.93,235.86,4.2398]
[1731890454582,27.04408572,235.95,235.86,41.88338572]
[1731890455867,27.04408572,235.93,235.86,14.8393]
[1731890456880,27.04408572,235.93,235.86,10.5995]
[1731890457063,31.28268572,235.93,235.86,10.5995]
[1731890457377,27.04408572,235.89,235.8,27.04408572]
[1731890457592,27.04408572,235.87,235.78,27.04408572]
[1731890457755,27.04408572,235.81,235.75,14.8461]
[1731890457961,27.04408572,235.81,235.75,10.6044]
[1731890459176,27.04408572,235.79,235.72,6.63467803]